[Event "*** Titled Tuesday Blitz"]
[Site "Chess.com"]
[Date "2020.05.26"]
[Round "9"]
[White "Gentle_Emperor"]
[Black "Alexandercs432"]
[Result "1-0"]
[WhiteElo "2319"]
[BlackElo "2128"]
[TimeControl "180+1"]
[EndTime "11:52:53 PDT"]
[Termination "Gentle_Emperor won by resignation"]

1. d4 {[%clk 0:03:00.9]} 1... d5 {[%clk 0:02:59]} 2. Bf4 {[%clk 0:02:59.7]} 2...
Nf6 {[%clk 0:02:58.5]} 3. Nf3 {[%clk 0:03:00]} 3... c5 {[%clk 0:02:57.9]} 4. e3
{[%clk 0:03:00.1]} 4... Nc6 {[%clk 0:02:58.3]} 5. Nc3 {[%clk 0:03:00.5]} 5...
Bf5 {[%clk 0:02:46.2]} 6. h3 {[%clk 0:02:57.5]} 6... e6 {[%clk 0:02:45]} 7. Bd3
{[%clk 0:02:47]} 7... Bg6 {[%clk 0:02:41.1]} 8. Nb5 {[%clk 0:02:37.5]} 8... Rc8
{[%clk 0:02:39.6]} 9. Bxg6 {[%clk 0:02:33.2]} 9... hxg6 {[%clk 0:02:38.9]} 10.
dxc5 {[%clk 0:02:31.2]} 10... Bxc5 {[%clk 0:02:37.2]} 11. c3 {[%clk 0:02:31.5]}
11... a6 {[%clk 0:02:34.7]} 12. Nbd4 {[%clk 0:02:30.5]} 12... O-O {[%clk
0:02:31.6]} 13. O-O {[%clk 0:02:28.5]} 13... Re8 {[%clk 0:02:28.6]} 14. Ne5
{[%clk 0:02:26.3]} 14... Nxe5 {[%clk 0:02:27.7]} 15. Bxe5 {[%clk 0:02:25.7]}
15... Bd6 {[%clk 0:02:27.3]} 16. Bxd6 {[%clk 0:02:18.1]} 16... Qxd6 {[%clk
0:02:28.2]} 17. Qb3 {[%clk 0:02:18]} 17... Rc7 {[%clk 0:02:15.8]} 18. a4 {[%clk
0:02:15.2]} 18... Rec8 {[%clk 0:02:12.8]} 19. Rfd1 {[%clk 0:02:14.2]} 19... Ne4
{[%clk 0:02:11.5]} 20. Rac1 {[%clk 0:02:09.5]} 20... Kh7 {[%clk 0:02:10.1]} 21.
Nf3 {[%clk 0:02:08.1]} 21... Qe7 {[%clk 0:02:04.2]} 22. Rd4 {[%clk 0:02:04.4]}
22... Qf6 {[%clk 0:02:02.3]} 23. Rcd1 {[%clk 0:02:01.4]} 23... Qe7 {[%clk
0:01:39.4]} 24. Qc2 {[%clk 0:01:49.6]} 24... Rc4 {[%clk 0:01:29.8]} 25. Nd2
{[%clk 0:01:18.9]} 25... Nxd2 {[%clk 0:01:28]} 26. R1xd2 {[%clk 0:01:18]} 26...
Rxd4 {[%clk 0:01:26.8]} 27. Rxd4 {[%clk 0:01:18.9]} 27... Rc7 {[%clk 0:01:16.9]}
28. Qe2 {[%clk 0:01:14.4]} 28... Qd7 {[%clk 0:01:08.3]} 29. Qf3 {[%clk
0:01:09.1]} 29... Qe7 {[%clk 0:01:05.9]} 30. g3 {[%clk 0:01:09]} 30... Kg8
{[%clk 0:01:04.5]} 31. h4 {[%clk 0:01:08.7]} 31... b5 {[%clk 0:01:00.2]} 32. h5
{[%clk 0:01:08]} 32... gxh5 {[%clk 0:00:56.6]} 33. Qxh5 {[%clk 0:01:07.5]} 33...
Rc4 {[%clk 0:00:48.2]} 34. axb5 {[%clk 0:01:00.3]} 34... Rxd4 {[%clk 0:00:45.7]}
35. exd4 {[%clk 0:00:59.6]} 35... axb5 {[%clk 0:00:46.2]} 36. Qe5 {[%clk
0:01:00.1]} 36... Qb7 {[%clk 0:00:42.6]} 37. Qd6 {[%clk 0:00:59.3]} 37... g6
{[%clk 0:00:40.8]} 38. g4 {[%clk 0:00:58.9]} 38... Kg7 {[%clk 0:00:40.3]} 39.
Kg2 {[%clk 0:00:58.9]} 39... Kg8 {[%clk 0:00:39.8]} 40. Kg3 {[%clk 0:00:59.1]}
40... Kg7 {[%clk 0:00:39.7]} 41. Kh4 {[%clk 0:00:59.6]} 41... Qc8 {[%clk
0:00:31.7]} 42. Qe5+ {[%clk 0:00:53.8]} 42... f6 {[%clk 0:00:28.4]} 43. Qd6
{[%clk 0:00:53.5]} 43... g5+ {[%clk 0:00:24.6]} 44. Kg3 {[%clk 0:00:53.4]} 44...
Kg6 {[%clk 0:00:21.9]} 45. f4 {[%clk 0:00:45.2]} 45... gxf4+ {[%clk 0:00:20.6]}
46. Kxf4 {[%clk 0:00:46.1]} 46... Qh8 {[%clk 0:00:15.3]} 47. Qxe6 {[%clk
0:00:45]} 47... Qh2+ {[%clk 0:00:14.9]} 48. Kf3 {[%clk 0:00:43.5]} 48... Qh1+
{[%clk 0:00:14.2]} 49. Ke2 {[%clk 0:00:37.5]} 49... Qg2+ {[%clk 0:00:13.5]} 50.
Kd3 {[%clk 0:00:37.8]} 50... Qf3+ {[%clk 0:00:09.8]} 51. Kc2 {[%clk 0:00:37.6]}
51... Qf2+ {[%clk 0:00:06.9]} 52. Kb3 {[%clk 0:00:37.6]} 52... Qf1 {[%clk
0:00:04]} 53. Qxd5 {[%clk 0:00:36.7]} 53... Qd1+ {[%clk 0:00:03.9]} 54. Kb4
{[%clk 0:00:36.7]} 54... Qa4+ {[%clk 0:00:04.8]} 55. Kc5 {[%clk 0:00:36.4]}
55... Qa7+ {[%clk 0:00:05]} 56. Kxb5 {[%clk 0:00:36.5]} 56... Qb8+ {[%clk
0:00:05]} 57. Kc4 {[%clk 0:00:36.4]} 57... Qc8+ {[%clk 0:00:04.9]} 58. Kd3
{[%clk 0:00:36]} 58... Qxg4 {[%clk 0:00:04.4]} 59. Qe4+ {[%clk 0:00:36.4]} 59...
Qxe4+ {[%clk 0:00:04.4]} 60. Kxe4 {[%clk 0:00:37.3]} 60... f5+ {[%clk
0:00:05.1]} 61. Kf4 {[%clk 0:00:37.6]} 61... Kf6 {[%clk 0:00:05.1]} 62. d5
{[%clk 0:00:38.5]} 1-0

[Event "*** Titled Tuesday Blitz"]
[Site "Chess.com"]
[Date "2020.05.26"]
[Round "9"]
[White "kleopl"]
[Black "verdest"]
[Result "1-0"]
[WhiteElo "2446"]
[BlackElo "2517"]
[TimeControl "180+1"]
[EndTime "11:52:56 PDT"]
[Termination "kleopl won by resignation"]

1. c4 {[%clk 0:03:00.9]} 1... Nf6 {[%clk 0:02:58.1]} 2. Nc3 {[%clk 0:03:00.2]}
2... e6 {[%clk 0:02:53.6]} 3. Nf3 {[%clk 0:02:59.3]} 3... d5 {[%clk 0:02:53]} 4.
d4 {[%clk 0:02:59.1]} 4... Bb4 {[%clk 0:02:52.5]} 5. cxd5 {[%clk 0:02:54.6]}
5... exd5 {[%clk 0:02:52.1]} 6. Bg5 {[%clk 0:02:53.7]} 6... h6 {[%clk
0:02:50.9]} 7. Bxf6 {[%clk 0:02:52.1]} 7... Qxf6 {[%clk 0:02:51.8]} 8. e3 {[%clk
0:02:52.4]} 8... O-O {[%clk 0:02:51.2]} 9. Be2 {[%clk 0:02:50]} 9... c6 {[%clk
0:02:50.6]} 10. O-O {[%clk 0:02:50]} 10... Bd6 {[%clk 0:02:40.2]} 11. h3 {[%clk
0:02:47.8]} 11... Bf5 {[%clk 0:02:37.6]} 12. Bd3 {[%clk 0:02:48]} 12... Nd7
{[%clk 0:02:36.1]} 13. Rb1 {[%clk 0:02:46.2]} 13... a5 {[%clk 0:02:34.6]} 14. a3
{[%clk 0:02:44.6]} 14... Rfe8 {[%clk 0:02:28.3]} 15. Re1 {[%clk 0:02:28.6]}
15... Nb6 {[%clk 0:02:15.4]} 16. Bxf5 {[%clk 0:02:24.5]} 16... Qxf5 {[%clk
0:02:13.7]} 17. Nd2 {[%clk 0:02:25]} 17... Qd3 {[%clk 0:02:03]} 18. Re2 {[%clk
0:02:09.3]} 18... Nc4 {[%clk 0:01:36.6]} 19. Nxc4 {[%clk 0:02:07.2]} 19... Qxd1+
{[%clk 0:01:36.5]} 20. Rxd1 {[%clk 0:02:04.9]} 20... dxc4 {[%clk 0:01:37.4]} 21.
d5 {[%clk 0:02:00.2]} 21... Be5 {[%clk 0:01:28.9]} 22. dxc6 {[%clk 0:01:57.5]}
22... bxc6 {[%clk 0:01:28.6]} 23. Na4 {[%clk 0:01:52]} 23... Red8 {[%clk
0:01:20.3]} 24. Rc1 {[%clk 0:01:46.6]} 24... Rab8 {[%clk 0:01:15.7]} 25. f4
{[%clk 0:01:42.8]} 25... Bf6 {[%clk 0:00:58.8]} 26. Rxc4 {[%clk 0:01:41.9]}
26... Rd6 {[%clk 0:00:47.3]} 27. Kf2 {[%clk 0:01:39.2]} 27... Rb3 {[%clk
0:00:41]} 28. Rcc2 {[%clk 0:01:31.8]} 28... Rb5 {[%clk 0:00:14.7]} 29. Nc3
{[%clk 0:01:18.3]} 29... Bxc3 {[%clk 0:00:11.9]} 30. Rxc3 {[%clk 0:01:19.2]}
30... Kf8 {[%clk 0:00:10.6]} 31. Rec2 {[%clk 0:01:15.9]} 31... Ke7 {[%clk
0:00:10.5]} 32. Kf3 {[%clk 0:01:11.2]} 32... Kd7 {[%clk 0:00:09]} 33. g4 {[%clk
0:01:11.3]} 33... g6 {[%clk 0:00:08.6]} 34. h4 {[%clk 0:01:11.1]} 34... Kc7
{[%clk 0:00:07.4]} 35. Ke2 {[%clk 0:01:08.2]} 35... Kb6 {[%clk 0:00:07.1]} 36.
Rd3 {[%clk 0:01:05.4]} 36... Re6 {[%clk 0:00:04.6]} 37. b3 {[%clk 0:00:45.3]}
37... h5 {[%clk 0:00:04.8]} 38. g5 {[%clk 0:00:43.3]} 38... Rf5 {[%clk
0:00:03.4]} 39. Kf3 {[%clk 0:00:42.5]} 39... Rb5 {[%clk 0:00:03.2]} 40. Rcc3
{[%clk 0:00:42.6]} 40... c5 {[%clk 0:00:02.5]} 41. Rd7 {[%clk 0:00:42.2]} 41...
f6 {[%clk 0:00:01.7]} 42. Rg7 {[%clk 0:00:39.2]} 42... fxg5 {[%clk 0:00:01.7]}
43. hxg5 {[%clk 0:00:39]} 43... Kc6 {[%clk 0:00:02.3]} 44. e4 {[%clk 0:00:38]}
44... Rb7 {[%clk 0:00:01.9]} 45. f5 {[%clk 0:00:36.5]} 45... Rxg7 {[%clk
0:00:01.3]} 46. fxe6 {[%clk 0:00:35.7]} 46... Re7 {[%clk 0:00:02.2]} 47. e5
{[%clk 0:00:32.9]} 47... Rxe6 {[%clk 0:00:02.4]} 48. Ke4 {[%clk 0:00:33.3]}
48... h4 {[%clk 0:00:03.3]} 49. b4 {[%clk 0:00:33.1]} 49... axb4 {[%clk
0:00:03.4]} 50. axb4 {[%clk 0:00:34]} 50... h3 {[%clk 0:00:03.7]} 51. Rxc5+
{[%clk 0:00:31.7]} 51... Kb6 {[%clk 0:00:03.9]} 52. Rc3 {[%clk 0:00:32]} 52...
h2 {[%clk 0:00:03.9]} 53. Rh3 {[%clk 0:00:31.8]} 53... Kb5 {[%clk 0:00:04.4]}
54. Rxh2 {[%clk 0:00:32]} 54... Kxb4 {[%clk 0:00:05.3]} 55. Rc2 {[%clk
0:00:32.1]} 55... Re8 {[%clk 0:00:05]} 56. Kd5 {[%clk 0:00:30.6]} 56... Rd8+
{[%clk 0:00:05.3]} 57. Ke6 {[%clk 0:00:30.7]} 57... Re8+ {[%clk 0:00:05.4]} 58.
Kf6 {[%clk 0:00:30.8]} 58... Kb3 {[%clk 0:00:05.6]} 59. Rc7 {[%clk 0:00:30]}
59... Kb4 {[%clk 0:00:05.7]} 60. e6 {[%clk 0:00:29.1]} 60... Kb5 {[%clk
0:00:06.2]} 61. Kf7 {[%clk 0:00:28.6]} 61... Ra8 {[%clk 0:00:05.7]} 62. e7
{[%clk 0:00:28.8]} 62... Kb6 {[%clk 0:00:04.8]} 63. Rc1 {[%clk 0:00:27.2]} 1-0

[Event "*** Titled Tuesday Blitz"]
[Site "Chess.com"]
[Date "2020.05.26"]
[Round "9"]
[White "angryhorse9"]
[Black "malakismayil"]
[Result "1-0"]
[WhiteElo "2472"]
[BlackElo "2303"]
[TimeControl "180+1"]
[EndTime "11:52:56 PDT"]
[Termination "angryhorse9 won by resignation"]

1. e4 {[%clk 0:02:59.9]} 1... e5 {[%clk 0:02:58.9]} 2. Bc4 {[%clk 0:02:59.9]}
2... Nc6 {[%clk 0:02:55.3]} 3. Nc3 {[%clk 0:02:59.7]} 3... Nf6 {[%clk
0:02:54.5]} 4. d3 {[%clk 0:02:59.7]} 4... Bc5 {[%clk 0:02:54.1]} 5. f4 {[%clk
0:02:59.4]} 5... d6 {[%clk 0:02:53.5]} 6. Nf3 {[%clk 0:02:59.4]} 6... Bg4 {[%clk
0:02:51.2]} 7. Na4 {[%clk 0:02:58.9]} 7... Bb6 {[%clk 0:02:48.5]} 8. Nxb6 {[%clk
0:02:56]} 8... axb6 {[%clk 0:02:49.4]} 9. h3 {[%clk 0:02:56.6]} 9... Bxf3 {[%clk
0:02:47.9]} 10. Qxf3 {[%clk 0:02:57.5]} 10... Nd4 {[%clk 0:02:48.1]} 11. Qf2
{[%clk 0:02:57.3]} 11... b5 {[%clk 0:02:44.8]} 12. c3 {[%clk 0:02:54.4]} 12...
bxc4 {[%clk 0:02:41.8]} 13. cxd4 {[%clk 0:02:54.6]} 13... cxd3 {[%clk
0:02:41.3]} 14. Qe3 {[%clk 0:02:39.4]} 14... exf4 {[%clk 0:02:33]} 15. Qxd3
{[%clk 0:02:39]} 15... O-O {[%clk 0:02:30.5]} 16. O-O {[%clk 0:02:38.8]} 16...
Re8 {[%clk 0:02:27.9]} 17. Rxf4 {[%clk 0:02:38.6]} 17... d5 {[%clk 0:02:24.3]}
18. e5 {[%clk 0:02:37.8]} 18... Ne4 {[%clk 0:02:24.1]} 19. Be3 {[%clk
0:02:37.4]} 19... c6 {[%clk 0:02:18.8]} 20. Raf1 {[%clk 0:02:37.3]} 20... Re7
{[%clk 0:02:18.1]} 21. a3 {[%clk 0:02:35.8]} 21... Qd7 {[%clk 0:02:17]} 22. Rg4
{[%clk 0:02:35.1]} 22... Qe6 {[%clk 0:02:12.2]} 23. Qd1 {[%clk 0:02:34.1]} 23...
h5 {[%clk 0:02:08.3]} 24. Rgf4 {[%clk 0:02:32.3]} 24... g6 {[%clk 0:02:01.3]}
25. Qf3 {[%clk 0:02:23.6]} 25... c5 {[%clk 0:01:57.6]} 26. g4 {[%clk 0:02:21.5]}
26... cxd4 {[%clk 0:01:56.7]} 27. Bxd4 {[%clk 0:02:22.4]} 27... Nd2 {[%clk
0:01:55.1]} 28. Qg2 {[%clk 0:02:15.9]} 28... Nxf1 {[%clk 0:01:53.5]} 29. gxh5
{[%clk 0:02:16.3]} 29... Ne3 {[%clk 0:01:22.2]} 30. Qg5 {[%clk 0:02:01.1]} 30...
Qxh3 {[%clk 0:01:01.3]} 31. hxg6 {[%clk 0:01:12]} 31... Qg2+ {[%clk 0:00:52.4]}
32. Qxg2 {[%clk 0:01:11]} 32... Nxg2 {[%clk 0:00:53.3]} 33. Kxg2 {[%clk
0:00:59.5]} 33... fxg6 {[%clk 0:00:52.4]} 34. Rf6 {[%clk 0:00:59.6]} 34... Kh7
{[%clk 0:00:52.4]} 35. Kf3 {[%clk 0:00:56]} 35... Rae8 {[%clk 0:00:40.9]} 36.
Rd6 {[%clk 0:00:48.4]} 36... Rf8+ {[%clk 0:00:36]} 37. Ke3 {[%clk 0:00:48.7]}
37... g5 {[%clk 0:00:32.4]} 38. Rxd5 {[%clk 0:00:48.9]} 38... g4 {[%clk
0:00:32.3]} 39. Rc5 {[%clk 0:00:48.2]} 39... g3 {[%clk 0:00:31.1]} 40. Rc1
{[%clk 0:00:48.5]} 40... g2 {[%clk 0:00:27.5]} 41. Rg1 {[%clk 0:00:48.9]} 41...
Rg7 {[%clk 0:00:27]} 42. e6 {[%clk 0:00:37.6]} 42... Rf1 {[%clk 0:00:18.1]} 43.
Ke4 {[%clk 0:00:31.2]} 43... Rxg1 {[%clk 0:00:16.7]} 44. Bxg1 {[%clk 0:00:32.1]}
44... Kg6 {[%clk 0:00:13.7]} 45. Ke5 {[%clk 0:00:32.2]} 45... Rh7 {[%clk
0:00:12.4]} 46. Kd6 {[%clk 0:00:31.1]} 46... Rh1 {[%clk 0:00:11.7]} 47. e7
{[%clk 0:00:30.6]} 47... Rxg1 {[%clk 0:00:05.9]} 48. e8=Q+ {[%clk 0:00:30.4]}
48... Kg5 {[%clk 0:00:06.8]} 49. Qe3+ {[%clk 0:00:29.8]} 49... Kg4 {[%clk
0:00:07.1]} 50. Qxg1 {[%clk 0:00:30.7]} 50... Kh3 {[%clk 0:00:08]} 51. Kc7
{[%clk 0:00:31.6]} 51... Kg3 {[%clk 0:00:08]} 52. Kxb7 {[%clk 0:00:32.5]} 1-0

[Event "*** Titled Tuesday Blitz"]
[Site "Chess.com"]
[Date "2020.05.26"]
[Round "9"]
[White "BIG_Pirate"]
[Black "White_Ghost"]
[Result "0-1"]
[WhiteElo "2325"]
[BlackElo "2483"]
[TimeControl "180+1"]
[EndTime "11:52:57 PDT"]
[Termination "White_Ghost won by checkmate"]

1. Nf3 {[%clk 0:03:00.9]} 1... Nf6 {[%clk 0:02:48.7]} 2. c4 {[%clk 0:03:00.7]}
2... g6 {[%clk 0:02:47.1]} 3. Nc3 {[%clk 0:03:00.3]} 3... Bg7 {[%clk 0:02:48]}
4. g3 {[%clk 0:03:00.4]} 4... O-O {[%clk 0:02:48.9]} 5. Bg2 {[%clk 0:03:00.5]}
5... b6 {[%clk 0:02:46.6]} 6. O-O {[%clk 0:02:59.9]} 6... Bb7 {[%clk 0:02:46.6]}
7. d4 {[%clk 0:03:00]} 7... d6 {[%clk 0:02:46.7]} 8. d5 {[%clk 0:02:56.4]} 8...
e5 {[%clk 0:02:39.6]} 9. e4 {[%clk 0:02:54.6]} 9... Ne8 {[%clk 0:02:33.8]} 10.
Ne1 {[%clk 0:02:38.3]} 10... f5 {[%clk 0:02:33.5]} 11. Nd3 {[%clk 0:02:35.7]}
11... Bc8 {[%clk 0:02:28.9]} 12. f3 {[%clk 0:02:29.2]} 12... Nd7 {[%clk
0:02:19]} 13. Be3 {[%clk 0:02:27.5]} 13... Nc5 {[%clk 0:01:56.7]} 14. b4 {[%clk
0:02:23.8]} 14... Nxd3 {[%clk 0:01:53.6]} 15. Qxd3 {[%clk 0:02:24.7]} 15... f4
{[%clk 0:01:54.4]} 16. Bf2 {[%clk 0:02:24.4]} 16... fxg3 {[%clk 0:01:42.9]} 17.
hxg3 {[%clk 0:02:23.7]} 17... Nf6 {[%clk 0:01:43.8]} 18. c5 {[%clk 0:02:17.2]}
18... Nh5 {[%clk 0:01:38.6]} 19. Rac1 {[%clk 0:01:51.6]} 19... Rf7 {[%clk
0:01:36.5]} 20. cxd6 {[%clk 0:01:32.1]} 20... cxd6 {[%clk 0:01:37.4]} 21. Nb5
{[%clk 0:01:28.7]} 21... Bf8 {[%clk 0:01:02.3]} 22. Rc6 {[%clk 0:01:27.8]} 22...
Bb7 {[%clk 0:00:58.2]} 23. a4 {[%clk 0:01:25.2]} 23... a6 {[%clk 0:00:45]} 24.
Na3 {[%clk 0:01:24.7]} 24... Qg5 {[%clk 0:00:34.8]} 25. Kh2 {[%clk 0:01:10.4]}
25... Qh6 {[%clk 0:00:34.1]} 26. Kg1 {[%clk 0:01:10.1]} 26... Qg5 {[%clk
0:00:33.6]} 27. Kh2 {[%clk 0:01:09.4]} 27... b5 {[%clk 0:00:24.9]} 28. axb5
{[%clk 0:01:04.7]} 28... axb5 {[%clk 0:00:25.8]} 29. Nxb5 {[%clk 0:01:05.1]}
29... Ra2 {[%clk 0:00:23.4]} 30. Nxd6 {[%clk 0:00:58]} 30... Bxd6 {[%clk
0:00:16.9]} 31. Rxd6 {[%clk 0:00:57.3]} 31... Rxf2 {[%clk 0:00:14.5]} 32. Rxf2
{[%clk 0:00:56.7]} 32... Qxg3+ {[%clk 0:00:15.1]} 33. Kg1 {[%clk 0:00:57.2]}
33... Nf4 {[%clk 0:00:15.7]} 34. Qd2 {[%clk 0:00:38.5]} 34... Rc7 {[%clk
0:00:09.9]} 35. Rf1 {[%clk 0:00:29.7]} 35... Nh3+ {[%clk 0:00:05.6]} 36. Kh1
{[%clk 0:00:29.8]} 36... Nf4 {[%clk 0:00:06.5]} 37. b5 {[%clk 0:00:21.5]} 37...
Rc3 {[%clk 0:00:04.1]} 38. Rd8+ {[%clk 0:00:19]} 38... Kg7 {[%clk 0:00:04.4]}
39. Rd7+ {[%clk 0:00:19.5]} 39... Kh6 {[%clk 0:00:04.8]} 40. Rxb7 {[%clk
0:00:19.8]} 40... Rd3 {[%clk 0:00:04.2]} 41. Qf2 {[%clk 0:00:16.9]} 41... Qg5
{[%clk 0:00:04.5]} 42. b6 {[%clk 0:00:12.8]} 42... Qh5+ {[%clk 0:00:04.8]} 43.
Kg1 {[%clk 0:00:12.6]} 43... Qg5 {[%clk 0:00:05.2]} 44. Qc2 {[%clk 0:00:11]}
44... Re3 {[%clk 0:00:04]} 45. Rf2 {[%clk 0:00:07.7]} 45... Re1+ {[%clk
0:00:03.4]} 46. Rf1 {[%clk 0:00:07.8]} 46... Re2 {[%clk 0:00:03.2]} 47. Qxe2
{[%clk 0:00:06.9]} 47... Nxe2+ {[%clk 0:00:04.1]} 48. Kf2 {[%clk 0:00:07.4]}
48... Nf4 {[%clk 0:00:04.6]} 49. Rh1+ {[%clk 0:00:07.3]} 49... Nh5 {[%clk
0:00:04.8]} 50. Rc7 {[%clk 0:00:06.5]} 50... Qd2+ {[%clk 0:00:05]} 51. Kg1
{[%clk 0:00:06.7]} 51... Qe1+ {[%clk 0:00:05.1]} 52. Kh2 {[%clk 0:00:06.5]}
52... Kg5 {[%clk 0:00:05.5]} 53. b7 {[%clk 0:00:04.3]} 53... Qg3+ {[%clk
0:00:05.7]} 54. Kg1 {[%clk 0:00:04.5]} 54... Nf4 {[%clk 0:00:06.6]} 55. b8=Q
{[%clk 0:00:01.5]} 55... Qxg2# {[%clk 0:00:06.5]} 0-1

[Event "*** Titled Tuesday Blitz"]
[Site "Chess.com"]
[Date "2020.05.26"]
[Round "9"]
[White "Kostya26"]
[Black "Caterpiller35"]
[Result "0-1"]
[WhiteElo "2445"]
[BlackElo "2304"]
[TimeControl "180+1"]
[EndTime "11:52:57 PDT"]
[Termination "Caterpiller35 won by resignation"]

1. e4 {[%clk 0:03:00.9]} 1... c5 {[%clk 0:02:59.5]} 2. Nf3 {[%clk 0:02:58.8]}
2... Nc6 {[%clk 0:02:57.9]} 3. Bb5 {[%clk 0:02:58.3]} 3... g6 {[%clk 0:02:54.4]}
4. Bxc6 {[%clk 0:02:57.3]} 4... bxc6 {[%clk 0:02:55.3]} 5. O-O {[%clk
0:02:56.8]} 5... Bg7 {[%clk 0:02:55.7]} 6. Re1 {[%clk 0:02:57.2]} 6... Nh6
{[%clk 0:02:55.8]} 7. c3 {[%clk 0:02:46.2]} 7... O-O {[%clk 0:02:55.8]} 8. d4
{[%clk 0:02:46.2]} 8... cxd4 {[%clk 0:02:56.7]} 9. cxd4 {[%clk 0:02:47.1]} 9...
d5 {[%clk 0:02:57.1]} 10. e5 {[%clk 0:02:43.9]} 10... Bg4 {[%clk 0:02:57.1]} 11.
Nc3 {[%clk 0:02:42.5]} 11... f6 {[%clk 0:02:53.4]} 12. e6 {[%clk 0:02:37.3]}
12... Nf5 {[%clk 0:02:49.9]} 13. Be3 {[%clk 0:02:29.6]} 13... Rb8 {[%clk
0:02:46.4]} 14. Na4 {[%clk 0:02:18.2]} 14... Nxe3 {[%clk 0:02:42.7]} 15. Rxe3
{[%clk 0:02:14.2]} 15... f5 {[%clk 0:02:39.6]} 16. Rd3 {[%clk 0:01:54.2]} 16...
f4 {[%clk 0:02:32.9]} 17. b3 {[%clk 0:01:44.3]} 17... Bxe6 {[%clk 0:02:27.9]}
18. Nc5 {[%clk 0:01:43.1]} 18... Bf5 {[%clk 0:02:25]} 19. Rd2 {[%clk 0:01:40.1]}
19... Rb5 {[%clk 0:02:21.4]} 20. Rc1 {[%clk 0:01:35.4]} 20... Bg4 {[%clk
0:02:05.5]} 21. h3 {[%clk 0:01:30.4]} 21... Bf5 {[%clk 0:01:58.9]} 22. Qe2
{[%clk 0:01:23]} 22... Qd6 {[%clk 0:01:48.6]} 23. a4 {[%clk 0:01:15.5]} 23...
Rb4 {[%clk 0:01:38.1]} 24. Qa6 {[%clk 0:00:56.4]} 24... Be4 {[%clk 0:01:24.8]}
25. Ng5 {[%clk 0:00:47.5]} 25... Rxd4 {[%clk 0:01:16.9]} 26. Rxd4 {[%clk
0:00:43]} 26... Bxd4 {[%clk 0:01:17.8]} 27. Nce6 {[%clk 0:00:41.3]} 27... Bb6
{[%clk 0:01:09]} 28. Nxf8 {[%clk 0:00:37.2]} 28... Kxf8 {[%clk 0:01:08.1]} 29.
Qc8+ {[%clk 0:00:29.3]} 29... Kg7 {[%clk 0:01:07.8]} 30. Qxc6 {[%clk 0:00:26.7]}
30... Qb4 {[%clk 0:00:33.6]} 31. Ne6+ {[%clk 0:00:19.3]} 31... Kf7 {[%clk
0:00:31.1]} 32. Ng5+ {[%clk 0:00:16.1]} 32... Kg7 {[%clk 0:00:30.9]} 33. Nxe4
{[%clk 0:00:15.6]} 33... dxe4 {[%clk 0:00:31.8]} 34. Qc3+ {[%clk 0:00:15.4]}
34... Qxc3 {[%clk 0:00:30.3]} 35. Rxc3 {[%clk 0:00:16.3]} 35... e3 {[%clk
0:00:29.6]} 36. fxe3 {[%clk 0:00:15.9]} 36... Bxe3+ {[%clk 0:00:29.8]} 37. Rxe3
{[%clk 0:00:09.9]} 37... fxe3 {[%clk 0:00:29.8]} 38. Kf1 {[%clk 0:00:10.8]}
38... Kf6 {[%clk 0:00:28.5]} 39. Ke2 {[%clk 0:00:09]} 39... Ke5 {[%clk
0:00:27.6]} 40. Kxe3 {[%clk 0:00:09.4]} 40... Kd5 {[%clk 0:00:27.9]} 41. Kd3
{[%clk 0:00:08.6]} 41... a5 {[%clk 0:00:27.8]} 42. Kc3 {[%clk 0:00:08.3]} 42...
Kc5 {[%clk 0:00:27.7]} 43. b4+ {[%clk 0:00:05.8]} 43... axb4+ {[%clk 0:00:27.5]}
44. Kb3 {[%clk 0:00:06.7]} 44... h5 {[%clk 0:00:18.3]} 45. a5 {[%clk 0:00:05.9]}
45... Kb5 {[%clk 0:00:18.6]} 46. a6 {[%clk 0:00:06.2]} 46... Kxa6 {[%clk
0:00:19.2]} 47. Kxb4 {[%clk 0:00:07.1]} 47... Kb6 {[%clk 0:00:19.7]} 48. Kc4
{[%clk 0:00:08]} 48... Kc6 {[%clk 0:00:20.2]} 49. Kd4 {[%clk 0:00:08.9]} 49...
Kd6 {[%clk 0:00:20.7]} 50. Ke4 {[%clk 0:00:08.4]} 50... Ke6 {[%clk 0:00:21.2]}
51. h4 {[%clk 0:00:06.7]} 51... Kf6 {[%clk 0:00:20.4]} 52. Kd5 {[%clk
0:00:05.9]} 52... Kf5 {[%clk 0:00:18.9]} 53. Kd4 {[%clk 0:00:05.6]} 53... e5+
{[%clk 0:00:18.4]} 54. Ke3 {[%clk 0:00:04.9]} 0-1